{"text_format":"2","workbook":"xlsx","n_sheets":3,"sheets":["Kostenplan Beschaffung","Kostenplan Baumaßnahme","Finanzierungsplan"],"not_rendered":{"charts":0,"images":0,"macros":0,"external_links":0,"defined_names":3,"comments":0,"pivot_tables":0},"unopened":[],"bounds":{"document_bytes":16777216,"sheet_cells":100000,"run_cost":"one","rows_first":2000,"rows_last":500,"rows_between":2000,"halvings":0,"cell_chars":16384,"cell_head_chars":4096},"cells_cut":0,"cells_raw":0,"read":"whole","date_system":"1900"}

{"sheet":"Kostenplan Beschaffung","index":0,"n_rows":58,"n_cols":5,"rows_kept":58,"cut":false,"hidden":false,"merged":[]}
[]
[null,"Anlage zum Antrag auf Zuwendung im Rahmen des Investitionsprogramms Soziokultur"]
[null,"Kostenplan für investive Beschaffungsmaßnahmen "]
[null,"(bei Baumaßnahmen bitte den \"Kostenplan für Baumaßnahmen\" auswählen)"]
[]
[null," Projektname :  "]
[]
[null," - Mindestens drei Kostenvoranschläge/Angebote beifügen."]
[null," - Zu beschaffende Gegenstände bitte mit Anzahl und Beträgen einzeln auflisten!"]
[null,"  - Angabe der Beträge (in EUR/Cent) ohne Umsatzsteuer  - netto:"]
[null,"     Angabe der Beträge (in EUR/Cent)  mit   Umsatzsteuer - brutto:"]
[]
[null,null,"ausgewähltes","Vergleichs-","Vergleichs-"]
[null," Auflistung der Gegenstände ","Angebot 1","Angebot 2","Angebot 3"]
[null,null,"Anbieter*in","Anbieter*in","Anbieter*in"]
{"$rows_empty":36}
[null," Zuwendundungsfähige Gesamtausgaben (in EUR/Cent)",{"$f":"SUM(C16:C51)","v":0},{"$f":"SUM(D16:D51)","v":0},{"$f":"SUM(E16:E51)","v":0}]
[]
[]
[null," Die Richtigkeit und Vollständigkeit aller Angaben wird hiermit versichert."]
[]
[]
[null,"Ort. Datum                      Unterschrift(en) "]

{"sheet":"Kostenplan Baumaßnahme","index":1,"n_rows":58,"n_cols":5,"rows_kept":58,"cut":false,"hidden":false,"merged":[]}
[]
[null,"Anlage zum Antrag auf Zuwendung im Rahmen des Investitionsprogramms Soziokultur"]
[null,"Kostenplan für investive Baumaßnahmen "]
[null,"(bei Beschaffungsmaßnahmen bitte den \"Kostenplan für Beschaffungsmaßnahmen\" auswählen)"]
[]
[null," Projektname :  "]
[]
[null," - Min. drei Kostenvoranschläge/Angebote  oder eine Kostenschätzung (KoS) gemäß DIN 276  beifügen."]
[null," - Projektbezogene Personalkosten mit Stundenzahl und Stundensatz angeben."]
[null,"  - Angabe der Beträge (in EUR/Cent) ohne Umsatzsteuer  - netto:"]
[null,"     Angabe der Beträge (in EUR/Cent)  mit   Umsatzsteuer - brutto:"]
[]
[null,null,"ausgewähltes","Vergleichs-","Vergleichs-"]
[null," Geplante Baumaßnahmen","Angebot 1 oder KoS","Angebot 2","Angebot 3"]
[null,null,"Anbieter*in","Anbieter*in","Anbieter*in"]
{"$rows_empty":36}
[null," Zuwendundungsfähige Gesamtausgaben (in EUR/Cent)",{"$f":"SUM(C16:C51)","v":0},{"$f":"SUM(D16:D51)","v":0},{"$f":"SUM(E16:E51)","v":0}]
[]
[]
[null," Die Richtigkeit und Vollständigkeit aller Angaben wird hiermit versichert."]
[]
[]
[null,"Ort. Datum                      Unterschrift(en) "]

{"sheet":"Finanzierungsplan","index":2,"n_rows":45,"n_cols":8,"rows_kept":45,"cut":false,"hidden":false,"merged":[]}
[]
[null,"Anlage zum Antrag auf Zuwendung im Rahmen des Investitionsprogramms Soziokultur"]
[null,"Finanzierungsplan  "]
[null," Projektname :  "]
[]
[null," Auflistung der Drittmittel","beantragt         am","in Aussicht      gestellt      am","bewilligt       am","Betrag                        in EUR /Cent",null,"%"]
[null,"1.1. Kommunen ( öffentliche Träger, Stiftungen bitte einzeln benennen )"]
[null,"        nur projektbezogene Mittel, keine laufenden Zuschüsse"]
[{"$nulls":7},{"$f":"+F9/(F27/100)","v":{"$error":"#DIV/0!"}}]
[{"$nulls":7},{"$f":"+F10/(F27/100)","v":{"$error":"#DIV/0!"}}]
[{"$nulls":7},{"$f":"+F11/(F27/100)","v":{"$error":"#DIV/0!"}}]
[{"$nulls":7},{"$f":"+F12/(F27/100)","v":{"$error":"#DIV/0!"}}]
[{"$nulls":7},{"$f":"+F13/(F27/100)","v":{"$error":"#DIV/0!"}}]
[{"$nulls":7},{"$f":"+F14/(F27/100)","v":{"$error":"#DIV/0!"}}]
[null," 1.2. Spenden, Sponsoren (größere Einzelspenden bitte einzeln benennen)"]
[{"$nulls":7},{"$f":"+F16/(F27/100)","v":{"$error":"#DIV/0!"}}]
[{"$nulls":7},{"$f":"+F17/(F27/100)","v":{"$error":"#DIV/0!"}}]
[{"$nulls":7},{"$f":"+F18/(F27/100)","v":{"$error":"#DIV/0!"}}]
[{"$nulls":7},{"$f":"+F19/(F27/100)","v":{"$error":"#DIV/0!"}}]
[{"$nulls":7},{"$f":"+F20/(F27/100)","v":{"$error":"#DIV/0!"}}]
[{"$nulls":7},{"$f":"+F21/(F27/100)","v":{"$error":"#DIV/0!"}}]
[]
[null," Summe der Drittmittel (siehe oben)",null,null,"in EUR/Cent",null,null,{"$f":"+F23/(F27/100)","v":{"$error":"#DIV/0!"}}]
[null," Eigenmittel ",null,null,"in EUR/Cent",null,null,{"$f":"+F24/(F27/100)","v":{"$error":"#DIV/0!"}}]
[null," Beantragte Fördermittel",null,null,"in EUR/Cent",null,null,{"$f":"+F25/(F27/100)","v":{"$error":"#DIV/0!"}}]
[]
[null," Gesamteinnahmen des Projektes ",null,null,"in EUR/Cent"]
[]
[]
[null," Erhöhung der Bemessungsgrundlage durch unentgeltliche, ehrenamtliche Arbeit *"]
[null," unentgeltliche, ehrenamtliche Arbeit (in Stunden)",null,null,">  "]
[null," festgelegter, fiktiver Stundensatz (15 EUR/h)",null,null,null,15]
[null," fiktive Ausgaben (EUR/Cent), max. 10% der förderf. Gesamtausgaben",null,null,null,{"$f":"+F31*F32","v":0},null,{"$f":"+F33/(F34/100)","v":{"$error":"#DIV/0!"}}]
[null," förderfähige Gesamtausgaben (gemäß Kostenplan)",null,null,">  "]
[null," Bemessungsgrundlage der Fördersumme",null,null,null,{"$f":"+F33+F34","v":0}]
[null," Max. Fördersumme gemäß Regelhöchstfördersatz 75%",null,null,null,{"$f":"+F35/100*75","v":0},null,{"$f":"+F36/(F35/100)","v":{"$error":"#DIV/0!"}}]
[null,"* auf Antrag, Bedingungen beachten!"]
[]
[]
[null," Die Gesamteinnahmen und die Gesamtausgaben des Projektes müssen deckungsgleich sein!"]
[null," Die Richtigkeit und Vollständigkeit aller Angaben wird hiermit versichert."]
[]
[]
[]
[null,"Ort. Datum                      Unterschrift(en) "]